fUSD/lending_fUSD_20250814
["ID","MTS","AMOUNT","RATE_DAILY","PERIOD"]
[379101726,1755140950649,-559.2099918,0.00019782,2]
[379101727,1755140950685,-308.61914858,0.00019782,2]
[379101728,1755140950723,-6754.58335,0.00019783,2]
[379101729,1755140950754,-54018.7466263,0.00019783,2]
[379101730,1755140950777,-111592.65226004,0.00019784,2]
[379101731,1755140951017,-775.00992036,0.00019784,2]
[379101732,1755140974826,-1000.0,0.00019684,2]
[379101733,1755140974851,-4361.89213534,0.00019784,2]
[379101739,1755141032333,-442.8,0.00019023,2]
[379101740,1755141032343,-500.0,0.00019339,2]
[379101741,1755141032353,-500.0,0.00019339,2]
[379101742,1755141032363,-150.0,0.00019339,2]
[379101743,1755141032372,-150.0,0.00019548,2]
[379101744,1755141032382,-150.0,0.00019548,2]
[379101745,1755141032392,-500.0,0.00019548,2]
[379101746,1755141032401,-40.2827424,0.00019548,2]
[379101747,1755141032413,-109.7172576,0.00019548,2]
[379101748,1755141032422,-500.0,0.00019613,2]
[379101749,1755141032432,-500.0,0.00019613,2]
[379101750,1755141032442,-206.00261237,0.00019613,2]
[379101751,1755141032451,-1000.0,0.00019684,2]
[379101752,1755141032460,-329.17130389,0.00019684,2]
[379101753,1755141032473,-2170.82869611,0.00019684,2]
[379101754,1755141032482,-151.0,0.00019698,2]
[379101755,1755141032491,-442.8,0.00019736,2]
[379101756,1755141032501,-646.61681954,0.00019773,2]
[379101757,1755141032510,-500.0,0.00019773,2]
[379101758,1755141032520,-500.0,0.00019773,2]
[379101759,1755141032529,-151.0,0.00019775,2]
[379101760,1755141032539,-1200.0,0.00019783,2]
[379101761,1755141032549,-49401.30110196,0.00019784,2]
[379101762,1755141032558,-209.8331,0.00019784,2]
[379101763,1755141032567,-1924.51680028,0.00019784,2]
[379101764,1755141032576,-168.0,0.00019786,2]
[379101765,1755141032586,-192.089939,0.00019787,2]
[379101766,1755141032595,-192.0899292,0.00019787,2]
[379101767,1755141032604,-1172.612991,0.00019787,2]
[379101768,1755141032614,-1172.612991,0.00019787,2]
[379101769,1755141032623,-151.0,0.00019787,2]
[379101770,1755141032632,-625.993034,0.00019787,2]
[379101771,1755141032641,-625.993035,0.00019787,2]
[379101772,1755141032650,-259.330461,0.00019787,2]
[379101773,1755141032659,-259.330461,0.00019787,2]
[379101774,1755141032669,-200.0,0.00019822,2]
[379101775,1755141032678,-500.0,0.00019822,2]
[379101776,1755141032688,-150.0,0.00019822,2]
[379101777,1755141032697,-4498.73841,0.0001985,2]
[379101778,1755141032707,-500.0,0.00019875,2]
[379101779,1755141032716,-202.68575004,0.00019886,2]
[379101780,1755141032726,-186.84218223,0.00019886,2]
[379101781,1755141032736,-208.09114519,0.00019886,2]
[379101782,1755141032745,-219.54952366,0.00019887,2]
[379101783,1755141032754,-500.0,0.00019887,2]
[379101784,1755141032764,-500.0,0.00019887,2]
[379101785,1755141032773,-5000.0,0.000199,2]
[379101786,1755141032783,-150.99,0.000199,2]
[379101787,1755141032792,-521.72563195,0.00019973,2]
[379101788,1755141032802,-500.0,0.00019973,2]
[379101789,1755141032811,-500.0,0.00019973,2]
[379101790,1755141032821,-500.0,0.00019973,2]
[379101791,1755141032830,-500.0,0.00019973,2]
[379101792,1755141032840,-500.0,0.00019973,2]
[379101793,1755141032850,-500.0,0.00019973,2]
[379101794,1755141032861,-75976.7185212,0.00019985,2]
[379101795,1755141032879,-151.0,0.00019985,2]
[379101796,1755141032889,-353.975084,0.00019985,2]
[379101797,1755141032898,-353.975084,0.00019985,2]
[379101798,1755141032907,-151.0,0.00019985,2]
[379101799,1755141032916,-151.0,0.00019985,2]
[379101801,1755141032925,-225.213437,0.00019985,2]
[379101802,1755141032934,-225.213437,0.00019985,2]
[379101803,1755141032944,-151.0,0.00019985,2]
[379101804,1755141032953,-151.0,0.00019985,2]
[379101805,1755141032962,-233.465756,0.00019985,2]
[379101806,1755141032972,-233.465756,0.00019985,2]
[379101807,1755141032982,-1092.95197,0.00019985,2]
[379101808,1755141032991,-1092.95197,0.00019985,2]
[379101809,1755141033000,-216.019948,0.00019985,2]
[379101810,1755141033010,-216.019948,0.00019985,2]
[379101811,1755141033020,-1172.612991,0.00019985,2]
[379101813,1755141033030,-1172.612997,0.00019985,2]
[379101814,1755141033040,-259.330461,0.00019985,2]
[379101815,1755141033050,-259.330468,0.00019985,2]
[379101816,1755141033059,-40077.56470061,0.0002,2]
[379101817,1755141033069,-83784.93207173,0.0002,2]
[379101818,1755141033079,-25078.96592252,0.0002,2]
[379101819,1755141033088,-5731.94772618,0.0002,2]
[379101820,1755141033097,-7227.34860278,0.0002,2]
[379101821,1755141033107,-90194.28555836,0.0002,2]
[379101822,1755141033117,-39950.98110291,0.0002,2]
[379101823,1755141033130,-351.65822353,0.0002,2]
[379101828,1755141033571,-216.033404,0.00019984,2]
[379101830,1755141033580,-391.44699426,0.00019984,2]
[379101832,1755141033590,-5601.25738196,0.0002,2]
[379101835,1755141033617,-19191.11310434,0.0002,2]
[379101836,1755141033626,-151.0,0.0002,2]
[379101837,1755141033635,-151.0,0.0002,2]
[379101838,1755141033645,-151.0,0.0002,2]
[379101839,1755141033654,-151.0,0.0002,2]
[379101840,1755141033664,-154.362471,0.0002,2]
[379101841,1755141033672,-353.975084,0.0002,2]
[379101842,1755141033682,-353.975084,0.0002,2]
[379101843,1755141033697,-353.975084,0.0002,2]
[379101844,1755141033706,-353.975084,0.0002,2]
[379101845,1755141033716,-353.975084,0.0002,2]
[379101846,1755141033725,-353.975084,0.0002,2]
[379101847,1755141033735,-353.975084,0.0002,2]
[379101848,1755141033744,-353.975084,0.0002,2]
[379101849,1755141033753,-151.0,0.0002,2]
[379101850,1755141033762,-353.975084,0.0002,2]
[379101851,1755141033771,-151.0,0.0002,2]
[379101852,1755141033780,-353.975084,0.0002,2]
[379101853,1755141033790,-151.0,0.0002,2]
[379101854,1755141033799,-353.975084,0.0002,2]
[379101855,1755141033810,-151.0,0.0002,2]
[379101856,1755141033820,-353.975084,0.0002,2]
[379101857,1755141033830,-151.0,0.0002,2]
[379101858,1755141033840,-353.975084,0.0002,2]
[379101859,1755141033850,-353.975086,0.0002,2]
[379101860,1755141033860,-172.52699,0.0002,2]
[379101861,1755141033878,-225.213437,0.0002,2]
[379101862,1755141033894,-225.213437,0.0002,2]
[379101863,1755141033903,-225.213437,0.0002,2]
[379101864,1755141033914,-225.213437,0.0002,2]
[379101865,1755141033924,-225.213437,0.0002,2]
[379101866,1755141033934,-225.213437,0.0002,2]
[379101867,1755141033943,-225.213437,0.0002,2]
[379101868,1755141033953,-225.213436,0.0002,2]
[379101869,1755141033962,-151.0,0.0002,2]
[379101870,1755141033973,-151.0,0.0002,2]
[379101871,1755141033984,-151.0,0.0002,2]
[379101872,1755141033994,-151.0,0.0002,2]
[379101873,1755141034005,-151.0,0.0002,2]
[379101874,1755141034015,-192.784692,0.0002,2]
[379101875,1755141034025,-233.465756,0.0002,2]
[379101876,1755141034037,-233.465756,0.0002,2]
[379101877,1755141034052,-233.465756,0.0002,2]
[379101878,1755141034062,-233.465756,0.0002,2]
[379101879,1755141034073,-233.465756,0.0002,2]
[379101880,1755141034083,-233.465756,0.0002,2]
[379101881,1755141034092,-233.465756,0.0002,2]
[379101882,1755141034102,-233.465761,0.0002,2]
[379101883,1755141034111,-1092.95197,0.0002,2]
[379101884,1755141034121,-1092.95197,0.0002,2]
[379101885,1755141034130,-1092.95197,0.0002,2]
[379101886,1755141034140,-1092.95197,0.0002,2]
[379101887,1755141034149,-1092.95197,0.0002,2]
[379101888,1755141034158,-1092.95197,0.0002,2]
[379101889,1755141034168,-1092.95197,0.0002,2]
[379101890,1755141034177,-1092.951975,0.0002,2]
[379101891,1755141034187,-216.019948,0.0002,2]
[379101892,1755141034196,-216.019948,0.0002,2]
[379101893,1755141034206,-216.019948,0.0002,2]
[379101894,1755141034215,-216.019948,0.0002,2]
[379101895,1755141034224,-216.019948,0.0002,2]
[379101896,1755141034233,-216.019948,0.0002,2]
[379101897,1755141034242,-216.019948,0.0002,2]
[379101898,1755141034251,-216.019956,0.0002,2]
[379101899,1755141034261,-151.0,0.0002,2]
[379101900,1755141034270,-196.903405,0.0002,2]
[379101901,1755141034280,-151.0,0.0002,2]
[379101902,1755141034289,-196.903405,0.0002,2]
[379101903,1755141034299,-151.0,0.0002,2]
[379101904,1755141034309,-151.0,0.0002,2]
[379101905,1755141034319,-151.0,0.0002,2]
[379101906,1755141034332,-151.0,0.0002,2]
[379101907,1755141034342,-151.0,0.0002,2]
[379101908,1755141034352,-151.0,0.0002,2]
[379101909,1755141034361,-151.0,0.0002,2]
[379101910,1755141034371,-276.357719,0.0002,2]
[379101911,1755141034381,-166.30365,0.0002,2]
[379101912,1755141034391,-276.357719,0.0002,2]
[379101913,1755141034401,-166.30365,0.0002,2]
[379101914,1755141034411,-211.37997,0.0002,2]
[379101915,1755141034421,-211.37997,0.0002,2]
[379101916,1755141034430,-299.552406,0.0002,2]
[379101917,1755141034440,-299.552406,0.0002,2]
[379101918,1755141034450,-151.0,0.0002,2]
[379101919,1755141034459,-283.435673,0.0002,2]
[379101920,1755141034468,-151.0,0.0002,2]
[379101921,1755141034478,-461.776412,0.0002,2]
[379101922,1755141034488,-151.0,0.0002,2]
[379101923,1755141034497,-461.776412,0.0002,2]
[379101924,1755141034507,-151.0,0.0002,2]
[379101925,1755141034517,-329.622478,0.0002,2]
[379101926,1755141034527,-263.836665,0.0002,2]
[379101927,1755141034536,-329.622478,0.0002,2]
[379101928,1755141034546,-263.836665,0.0002,2]
[379101929,1755141034555,-214.397328,0.0002,2]
[379101930,1755141034566,-214.397328,0.0002,2]
[379101931,1755141034576,-151.0,0.0002,2]
[379101932,1755141034585,-205.065078,0.0002,2]
[379101933,1755141034595,-205.065078,0.0002,2]
[379101934,1755141034605,-151.0,0.0002,2]
[379101935,1755141034615,-755.606901,0.0002,2]
[379101936,1755141034624,-755.606901,0.0002,2]
[379101937,1755141034634,-151.0,0.0002,2]
[379101938,1755141034643,-151.0,0.0002,2]
[379101939,1755141034652,-163.526661,0.0002,2]
[379101940,1755141034662,-151.0,0.0002,2]
[379101941,1755141034671,-151.0,0.0002,2]
[379101942,1755141034680,-198.432317,0.0002,2]
[379101943,1755141034689,-198.432317,0.0002,2]
[379101944,1755141034699,-151.0,0.0002,2]
[379101945,1755141034708,-219.744119,0.0002,2]
[379101946,1755141034717,-219.744119,0.0002,2]
[379101947,1755141034727,-151.509704,0.0002,2]
[379101948,1755141034736,-151.0,0.0002,2]
[379101949,1755141034746,-352.975272,0.0002,2]
[379101950,1755141034755,-352.975272,0.0002,2]
[379101951,1755141034765,-623.632297,0.0002,2]
[379101952,1755141034774,-151.0,0.0002,2]
[379101953,1755141034783,-623.632297,0.0002,2]
[379101954,1755141034793,-504.520265,0.0002,2]
[379101955,1755141034802,-504.520265,0.0002,2]
[379101956,1755141034812,-255.171492,0.0002,2]
[379101957,1755141034821,-255.171492,0.0002,2]
[379101958,1755141034831,-260.798654,0.0002,2]
[379101959,1755141034840,-260.798654,0.0002,2]
[379101960,1755141034850,-151.0,0.0002,2]
[379101961,1755141034860,-151.0,0.0002,2]
[379101962,1755141034872,-167.776839,0.0002,2]
[379101963,1755141034882,-167.776839,0.0002,2]
[379101964,1755141034892,-151.0,0.0002,2]
[379101965,1755141034901,-171.237155,0.0002,2]
[379101966,1755141034911,-171.237155,0.0002,2]
[379101967,1755141034921,-151.0,0.0002,2]
[379101968,1755141035222,-1396.880114,0.0002,2]
[379101969,1755141035233,-1396.880114,0.0002,2]
[379101970,1755141035248,-437.051332,0.0002,2]
[379101971,1755141035257,-437.051332,0.0002,2]
[379101972,1755141035267,-2013.703179,0.0002,2]
[379101973,1755141035277,-1062.471198,0.0002,2]
[379101974,1755141035287,-1062.471198,0.0002,2]
[379101975,1755141035296,-2013.703179,0.0002,2]
[379101976,1755141035306,-229.697885,0.0002,2]
[379101977,1755141035315,-229.697885,0.0002,2]
[379101978,1755141035325,-522.420924,0.0002,2]
[379101979,1755141035335,-522.420924,0.0002,2]
[379101980,1755141035344,-9275.0,0.0002,2]
[379101981,1755141035354,-151.0,0.0002,2]
[379101982,1755141035363,-151.0,0.0002,2]
[379101983,1755141035373,-151.0,0.0002,2]
[379101984,1755141035382,-151.0,0.0002,2]
[379101985,1755141035391,-9106.08060898,0.0002001,2]
[379101986,1755141035401,-5022.6300823,0.0002001,2]
[379101987,1755141035410,-5772.0,0.0002001,2]
[379101988,1755141035419,-500.0,0.00020096,2]
[379101989,1755141035429,-200.0,0.00020096,2]
[379101990,1755141035438,-168.0,0.00020107,2]
[379101991,1755141035448,-168.0,0.00020132,2]
[379101992,1755141035457,-500.0,0.00020149,2]
[379101993,1755141035466,-488.14977145,0.00020161,2]
[379101994,1755141035475,-500.0,0.00020161,2]
[379101995,1755141035484,-150.0,0.0002018,2]
[379101996,1755141035494,-203.63,0.00020187,2]
[379101997,1755141035503,-168.0,0.00020196,2]
[379101998,1755141035512,-504.89719824,0.00020221,2]
[379101999,1755141035521,-634.19965518,0.0002024,2]
[379102000,1755141035530,-151.0,0.0002024,2]
[379102001,1755141035539,-250.0,0.00020241,2]
[379102002,1755141035548,-287.61899177,0.00020258,2]
[379102003,1755141035558,-1074.06951,0.0002026,2]
[379102004,1755141035567,-1000.0,0.00020321,2]
[379102005,1755141035576,-209.54880455,0.00020321,2]
[379102006,1755141035586,-1007.25594841,0.00020321,2]
[379102007,1755141035596,-500.0,0.0002037,2]
[379102008,1755141035609,-500.0,0.00020423,2]
[379102009,1755141035619,-500.0,0.00020435,2]
[379102010,1755141035628,-442.8,0.00020449,2]
[379102011,1755141035638,-160.0,0.00020513,2]
[379102012,1755141035647,-311.1,0.00020513,2]
[379102013,1755141035656,-590.77394881,0.00020521,2]
[379102014,1755141035665,-1000.0,0.00020521,2]
[379102015,1755141035675,-1000.0,0.00020521,2]
[379102016,1755141035684,-1000.0,0.00020521,2]
[379102017,1755141035694,-267.82747281,0.00020521,2]
[379102018,1755141035703,-505.92304418,0.00020521,2]
[379102019,1755141035713,-6754.58335,0.00020567,2]
[379102020,1755141035722,-54018.7466263,0.00020567,2]
[379102021,1755141035731,-166130.8554177,0.00020568,2]
[379102022,1755141035741,-278876.66512472,0.00020568,2]
[379102023,1755141035759,-37732.08563595,0.00020568,2]
[379102024,1755141035797,-686.97410665,0.00020568,2]
[379102025,1755141035808,-2386.50946499,0.00020568,2]
[379102026,1755141035843,-26016.53702626,0.00020568,2]
[379102027,1755141035855,-2579.40996739,0.00020568,2]
[379102029,1755141038246,-151.0,0.00019849,2]
[379102030,1755141038255,-3592.80370838,0.00020568,2]
[379102031,1755141038471,-23240.0,0.00020568,2]
[379102032,1755141038483,-22420.0,0.00020568,2]
[379102033,1755141038494,-435.69300547,0.00020568,2]
[379102034,1755141038506,-3282.57584691,0.00020568,2]
[379102052,1755141040505,-5000.0,0.000199,2]
[379102053,1755141040515,-893.39808926,0.00020568,2]
[379102054,1755141040526,-6883.38337673,0.00020568,2]
[379102055,1755141040537,-4128.63986883,0.00020568,2]
[379102056,1755141040549,-4432.26839026,0.00020568,2]
[379102057,1755141040560,-25779.98674012,0.00020568,2]
[379102058,1755141040571,-83825.33277883,0.00020568,2]
[379102059,1755141040583,-1363.68834929,0.00020568,2]
[379102060,1755141040595,-9677.49190937,0.00020568,2]
[379102061,1755141040606,-2450.08099561,0.00020568,2]
[379102062,1755141040617,-31906.77109512,0.00020568,2]
[379102063,1755141040645,-8560.17386817,0.00020568,2]
[379102064,1755141040656,-3709.20402721,0.00020568,2]
[379102065,1755141040666,-500.0,0.00020644,2]
[379102066,1755141040675,-151.0,0.0002069,2]
[379102067,1755141040686,-196.903405,0.0002069,2]
[379102068,1755141040696,-151.0,0.0002069,2]
[379102069,1755141040705,-196.903405,0.0002069,2]
[379102070,1755141040715,-151.0,0.0002069,2]
[379102071,1755141040725,-151.0,0.0002069,2]
[379102072,1755141040734,-151.0,0.0002069,2]
[379102073,1755141040743,-151.0,0.0002069,2]
[379102074,1755141040753,-151.0,0.0002069,2]
[379102075,1755141040763,-280.517167,0.0002069,2]
[379102076,1755141040773,-151.0,0.0002069,2]
[379102077,1755141040784,-276.357719,0.0002069,2]
[379102078,1755141040794,-166.30365,0.0002069,2]
[379102079,1755141040804,-276.357719,0.0002069,2]
[379102080,1755141040814,-166.30365,0.0002069,2]
[379102081,1755141040824,-211.37997,0.0002069,2]
[379102082,1755141040834,-211.37997,0.0002069,2]
[379102083,1755141040844,-299.552406,0.0002069,2]
[379102084,1755141040854,-299.552406,0.0002069,2]
[379102085,1755141040863,-151.0,0.0002069,2]
[379102086,1755141040876,-461.776412,0.0002069,2]
[379102087,1755141040889,-151.0,0.0002069,2]
[379102088,1755141040900,-184.72688852,0.0002069,2]
[379102089,1755141040912,-277.04952348,0.0002069,2]
[379102090,1755141040922,-408.33906356,0.00020697,2]
[379102091,1755141040931,-8258.39527758,0.000207,2]
[379102092,1755141040943,-9077.54866152,0.000207,2]
[379102093,1755141040954,-4843.70518038,0.000207,2]
[379102094,1755141040964,-500.0,0.00020709,2]
[379102095,1755141040974,-1074.0695,0.0002076,2]
[379102096,1755141040985,-151.0,0.00020788,2]
[379102097,1755141040996,-2375.06555451,0.0002085,2]
[379102098,1755141041007,-2123.67285549,0.0002085,2]
[379102099,1755141041018,-1505.62404893,0.00020868,2]
[379102100,1755141041027,-203.744,0.00020899,2]
[379102101,1755141041037,-165.87391484,0.00020918,2]
[379102102,1755141041046,-151.0,0.00020926,2]
[379102103,1755141041057,-151.0,0.00020926,2]
[379102104,1755141041069,-263.836665,0.00020926,2]
[379102105,1755141041079,-263.836665,0.00020926,2]
[379102106,1755141041088,-214.397328,0.00020926,2]
[379102107,1755141041098,-214.397328,0.00020926,2]
[379102108,1755141041107,-151.0,0.00020926,2]
[379102109,1755141041116,-205.065078,0.00020926,2]
[379102110,1755141041126,-205.065078,0.00020926,2]
[379102111,1755141041136,-151.0,0.00020926,2]
[379102112,1755141041146,-151.0,0.00020926,2]
[379102113,1755141041155,-151.0,0.00020926,2]
[379102114,1755141041165,-151.0,0.00020926,2]
[379102115,1755141041175,-151.0,0.00020926,2]
[379102116,1755141041184,-198.432317,0.00020926,2]
[379102117,1755141041193,-198.432317,0.00020926,2]
[379102118,1755141041203,-151.0,0.00020926,2]
[379102119,1755141041212,-219.744119,0.00020926,2]
[379102120,1755141041222,-219.744119,0.00020926,2]
[379102121,1755141041231,-352.975272,0.00020926,2]
[379102122,1755141041242,-352.975272,0.00020926,2]
[379102123,1755141041252,-623.632297,0.00020926,2]
[379102124,1755141041262,-151.0,0.00020926,2]
[379102125,1755141041272,-623.632297,0.00020926,2]
[379102126,1755141041281,-504.520265,0.00020926,2]
[379102127,1755141041291,-504.520265,0.00020926,2]
[379102128,1755141041300,-255.171492,0.00020926,2]
[379102129,1755141041310,-255.171492,0.00020926,2]
[379102130,1755141041319,-260.798654,0.00020926,2]
[379102131,1755141041328,-260.798654,0.00020926,2]
[379102132,1755141041338,-151.0,0.00020926,2]
[379102133,1755141041347,-151.0,0.00020926,2]
[379102134,1755141041358,-167.776839,0.00020926,2]
[379102135,1755141041367,-167.776839,0.00020926,2]
[379102136,1755141041376,-171.237155,0.00020926,2]
[379102137,1755141041386,-171.237155,0.00020926,2]
[379102138,1755141041396,-1396.880114,0.00020926,2]
[379102139,1755141041406,-1396.880114,0.00020926,2]
[379102140,1755141041416,-2013.703179,0.00020926,2]
[379102141,1755141041426,-2013.703179,0.00020926,2]
[379102142,1755141041435,-522.420924,0.00020926,2]
[379102143,1755141041444,-522.420924,0.00020926,2]
[379102144,1755141041456,-151.0,0.00020926,2]
[379102145,1755141041466,-151.0,0.00020926,2]
[379102146,1755141041476,-151.0,0.00020926,2]
[379102147,1755141041485,-151.0,0.00020926,2]
[379102148,1755141041494,-500.0,0.00020983,2]
[379102149,1755141041504,-250.0,0.00020996,2]
[379102150,1755141041514,-300.0,0.00020996,2]
[379102151,1755141041523,-20000.0,0.00021,2]
[379102152,1755141041533,-6774.92022566,0.00021,2]
[379102153,1755141041543,-1168.22359228,0.00021,2]
[379102154,1755141041551,-329.622478,0.00021,2]
[379102155,1755141041560,-329.622478,0.00021,2]
[379102156,1755141041569,-755.606901,0.00021,2]
[379102157,1755141041578,-755.606901,0.00021,2]
[379102158,1755141041588,-151.0,0.00021,2]
[379102159,1755141041598,-1062.471198,0.00021,2]
[379102160,1755141041608,-1062.471198,0.00021,2]
[379102161,1755141041617,-1509.56770731,0.00021068,2]
[379102162,1755141041627,-725.03294862,0.00021068,2]
[379102163,1755141041637,-1500.0,0.00021068,2]
[379102164,1755141041647,-417.0,0.000211,2]
[379102165,1755141041656,-442.8,0.00021163,2]
[379102166,1755141041665,-500.0,0.00021257,2]
[379102167,1755141041674,-1074.0695,0.0002126,2]
[379102168,1755141041683,-153.81156341,0.00021336,2]
[379102169,1755141041693,-164.5620506,0.0002135,2]
[379102170,1755141041702,-6754.58335,0.0002135,2]
[379102171,1755141041711,-54018.7466263,0.0002135,2]
[379102172,1755141041721,-166130.8554177,0.00021351,2]
[379102173,1755141041730,-6225.73,0.0002137,2]
[379102174,1755141041739,-150.0,0.0002137,2]
[379102175,1755141041749,-217.36846964,0.000215,2]
[379102176,1755141041759,-151.0,0.00021501,2]
[379102177,1755141041768,-151.0,0.00021501,2]
[379102178,1755141041777,-437.051332,0.00021501,2]
[379102179,1755141041787,-437.051332,0.00021501,2]
[379102180,1755141041796,-229.697885,0.00021501,2]
[379102181,1755141041805,-229.697885,0.00021501,2]
[379102182,1755141041815,-500.0,0.00021531,2]
[379102183,1755141041826,-512.11325738,0.00021616,2]
[379102184,1755141041835,-298.26089446,0.00021627,2]
[379102185,1755141041845,-1680.0,0.0002165,2]
[379102186,1755141041855,-250.0,0.00021652,2]
[379102187,1755141041864,-300.0,0.00021652,2]
[379102188,1755141041876,-500.0,0.00021805,2]
[379102189,1755141041887,-4498.73841,0.0002185,2]
[379102190,1755141041896,-442.8,0.00021876,2]
[379102191,1755141041908,-160.0,0.00021882,2]
[379102192,1755141041919,-322.6107,0.00021882,2]
[379102193,1755141041928,-207.4,0.00021883,2]
[379102194,1755141041937,-1438.09495884,0.00021883,2]
[379102195,1755141041947,-264.537252,0.00021918,2]
[379102196,1755141041956,-264.537252,0.00021918,2]
[379102197,1755141041966,-264.537252,0.00021918,2]
[379102198,1755141041975,-264.537252,0.00021918,2]
[379102199,1755141041984,-264.537252,0.00021918,2]
[379102200,1755141041993,-264.537252,0.00021918,2]
[379102201,1755141042002,-264.537252,0.00021918,2]
[379102202,1755141042012,-264.537252,0.00021918,2]
[379102203,1755141042021,-5000.0,0.00021918,2]
[379102204,1755141042030,-150.56278338,0.00021918,2]
[379102205,1755141042039,-520.17900091,0.00021918,2]
[379102206,1755141042048,-339.0,0.00021973,2]
[379102207,1755141042058,-15635.92060316,0.0002199,2]
[379102208,1755141042069,-151.0,0.0002199,7]
[379102209,1755141042079,-196.903405,0.0002199,7]
[379102210,1755141042088,-151.0,0.0002199,7]
[379102211,1755141042097,-196.903405,0.0002199,7]
[379102212,1755141042106,-151.0,0.0002199,7]
[379102213,1755141042115,-151.0,0.0002199,7]
[379102214,1755141042125,-151.0,0.0002199,7]
[379102215,1755141042134,-151.0,0.0002199,7]
[379102216,1755141042143,-151.0,0.0002199,7]
[379102217,1755141042152,-213.088324,0.0002199,7]
[379102218,1755141042161,-276.357719,0.0002199,7]
[379102219,1755141042173,-166.30365,0.0002199,7]
[379102220,1755141042181,-276.357719,0.0002199,7]
[379102221,1755141042190,-166.30365,0.0002199,7]
[379102222,1755141042201,-211.37997,0.0002199,7]
[379102223,1755141042211,-211.37997,0.0002199,7]
[379102224,1755141042220,-299.552406,0.0002199,7]
[379102225,1755141042519,-299.552406,0.0002199,7]
[379102226,1755141042536,-151.0,0.0002199,7]
[379102227,1755141042546,-461.776412,0.0002199,7]
[379102228,1755141042555,-151.0,0.0002199,7]
[379102229,1755141042565,-461.776412,0.0002199,7]
[379102230,1755141042574,-500.0,0.00022,2]
[379102231,1755141042583,-517.0,0.00022,2]
[379102232,1755141042593,-500.0,0.00022079,2]
[379102233,1755141042603,-235.18018332,0.0002211,2]
[379102234,1755141042613,-566.37,0.00022313,2]
[379102235,1755141042622,-500.0,0.00022353,2]
[379102236,1755141042632,-3120.78109616,0.000225,2]
[379102237,1755141042641,-197.0,0.0002255,2]
[379102238,1755141042651,-500.0,0.00022627,2]
[379102239,1755141042660,-155.0,0.00022799,2]
[379102240,1755141042669,-4498.7384,0.0002285,2]
[379102241,1755141042679,-500.0,0.00022901,2]
[379102242,1755141042689,-309.29654756,0.00022996,2]
[379102243,1755141042698,-411.0,0.00023,7]
[379102244,1755141042708,-270.73,0.00023077,2]
[379102245,1755141042718,-500.0,0.00023175,2]
[379102246,1755141042727,-160.0,0.00023251,2]
[379102247,1755141042738,-334.5472959,0.00023251,2]
[379102248,1755141042747,-1046.37138303,0.00023281,2]
[379102249,1755141042758,-250.0,0.00023286,2]
[379102250,1755141042768,-411.0,0.00023288,7]
[379102251,1755141042777,-500.0,0.00023449,2]
[379102252,1755141042787,-152.54969412,0.00023565,2]
[379102253,1755141042796,-1000.0,0.00023589,2]
[379102254,1755141042805,-2351.0,0.00023693,2]
[379102255,1755141042815,-500.0,0.00023723,2]
[379102256,1755141042825,-193.0,0.0002373,2]
[379102257,1755141042834,-1000.0,0.00023738,2]
[379102258,1755141042845,-174.99,0.00023741,2]